bitfinex-derivatives/quotes_BTCF0:USTF0_20250308
["timestamp","ask_amount","ask_price","bid_price","bid_amount"]
[1741409247292,0.1219,86294.0,86293.0,0.2159051]
[1741409247501,0.1219,86294.0,86293.0,0.4523051]
[1741409248400,0.1219,86294.0,86293.0,0.39460902]
[1741409250106,0.1219,86294.0,86293.0,0.29460902]
[1741409250295,0.02781391,86294.0,86293.0,0.39460902]
[1741409250801,4e-05,86296.0,86295.0,0.1159024]
[1741409251204,0.11174,86296.0,86295.0,0.1159024]
[1741409251397,0.11174,86296.0,86295.0,0.05820632]
[1741409251602,0.227641,86296.0,86295.0,0.05820632]
[1741409252405,0.16250496,86296.0,86295.0,0.05820632]
[1741409254097,0.04660396,86296.0,86295.0,0.05820632]
[1741409254595,0.04660396,86296.0,86295.0,0.1159024]
[1741409254999,0.28180496,86296.0,86295.0,0.1159024]
[1741409255805,0.28180496,86296.0,86295.0,0.2159024]
[1741409256492,0.16590396,86296.0,86295.0,0.2159024]
[1741409256704,0.0579493,86298.0,86297.0,0.1158997]
[1741409257291,0.0579493,86298.0,86297.0,0.3478997]
[1741409257496,0.0579493,86298.0,86297.0,0.29018297]
[1741409259803,0.2692895,86300.0,86297.0,0.39018297]
[1741409260002,0.1158988,86298.0,86297.0,0.50607997]
[1741409260509,0.1158988,86298.0,86297.0,0.347897]
[1741409260911,0.1158988,86298.0,86297.0,0.4058467]
[1741409263602,0.1158988,86298.0,86297.0,0.34812997]
[1741409266612,0.1158988,86298.0,86297.0,0.29041324]
[1741409268713,0.2692895,86300.0,86297.0,0.17451624]
[1741409268998,0.1158988,86298.0,86297.0,0.11656654]
[1741409269205,0.1158988,86298.0,86297.0,0.1123]
[1741409269708,0.1159131,86287.0,86286.0,0.30325706]
[1741409269908,0.1159131,86287.0,86286.0,0.75077086]
[1741409270211,0.1159131,86287.0,86286.0,0.65077086]
[1741409271011,0.1159131,86287.0,86286.0,0.53485706]
[1741409271214,0.1159131,86287.0,86286.0,0.65077156]
[1741409271809,0.0579555,86289.0,86286.0,0.1202]
[1741409272018,0.1159131,86287.0,86286.0,0.1202]
[1741409272199,0.1159131,86287.0,86286.0,0.2361145]
[1741409272600,0.1159131,86287.0,86286.0,0.17839777]
[1741409272801,0.1159131,86287.0,86286.0,0.06248327]
[1741409273303,0.1159131,86287.0,86286.0,0.17839777]
[1741409274510,0.1159172,86284.0,86276.0,0.1159274]
[1741409274708,0.1738889,86279.0,86278.0,0.1159217]
[1741409275313,0.0579623,86279.0,86278.0,0.1159217]
[1741409275508,0.0579623,86279.0,86278.0,0.2159217]
[1741409275709,0.0579623,86279.0,86278.0,0.21741006]
[1741409275908,0.0579623,86279.0,86278.0,0.11741006]
[1741409276414,0.0579623,86279.0,86278.0,0.22911006]
[1741409276815,0.1159266,86279.0,86278.0,0.27090509]
[1741409277008,0.1159266,86279.0,86278.0,0.17513029]
[1741409277207,0.2276266,86279.0,86278.0,0.17513029]
[1741409278112,0.2276266,86279.0,86278.0,0.05920509]
[1741409278420,0.1159252,86278.0,86277.0,0.1222]
[1741409278717,0.1159252,86278.0,86277.0,0.13088763]
[1741409278911,0.2310252,86278.0,86277.0,0.21306271]
[1741409279106,0.1151,86278.0,86277.0,0.36450604]
[1741409279716,0.1151,86278.0,86277.0,0.47560604]
[1741409280214,4e-05,86281.0,86280.0,0.1159225]
[1741409280415,4e-05,86281.0,86280.0,0.19809758]
[1741409280615,4e-05,86281.0,86280.0,0.40919758]
[1741409281213,4e-05,86281.0,86280.0,0.30919758]
[1741409281614,0.1159612,86281.0,86280.0,0.30919758]
[1741409281819,0.1159612,86281.0,86280.0,0.35148085]
[1741409283115,0.1159612,86281.0,86280.0,0.25148085]
[1741409284927,0.1159612,86281.0,86280.0,0.19327508]
[1741409285925,0.1159612,86281.0,86280.0,0.30919758]
[1741409286723,0.5934612,86281.0,86280.0,0.08217508]
[1741409286933,0.65027559,86281.0,86280.0,0.08217508]
[1741409287113,0.53435439,86281.0,86259.0,0.44307508]
[1741409287425,0.53435439,86281.0,86262.0,0.057973]
[1741409287426,0.3608,86265.0,86262.0,0.057973]
[1741409287616,0.3608,86265.0,86264.0,0.215944]
[1741409287816,0.4767427,86265.0,86264.0,0.05822727]
[1741409288217,0.4767427,86265.0,86264.0,0.29682727]
[1741409288624,0.4767427,86265.0,86264.0,0.17932727]
[1741409288818,0.4767427,86265.0,86264.0,0.1211]
[1741409289120,0.4767427,86265.0,86264.0,0.237044]
[1741409289321,0.4767427,86265.0,86264.0,0.1211]
[1741409289719,0.5912427,86265.0,86264.0,0.1211]
[1741409290918,0.5912427,86265.0,86264.0,0.06338327]
[1741409292213,0.4753,86265.0,86260.0,0.1187]
[1741409292419,0.4753,86265.0,86259.0,0.05827933]
[1741409292729,0.1159534,86257.0,86256.0,0.2331]
[1741409292927,0.05078962,86257.0,86256.0,0.2331]
[1741409293429,0.05078962,86257.0,86252.0,0.00867849]
[1741409293629,0.1159575,86254.0,86253.0,0.122]
[1741409293834,0.1159575,86254.0,86253.0,0.06428327]
[1741409294922,0.1159575,86254.0,86253.0,0.05854781]
[1741409295117,0.1159575,86254.0,86251.0,0.1122]
[1741409295418,0.1159602,86252.0,86251.0,0.1122]
[1741409296923,0.1159602,86252.0,86251.0,0.05448327]
[1741409297125,0.1159602,86252.0,86251.0,0.17318327]
[1741409297739,0.1159602,86252.0,86251.0,0.22976763]
[1741409297923,4e-05,86255.0,86251.0,0.22976763]
[1741409298127,0.057957,86287.0,86272.0,0.1159333]
[1741409298325,0.1159319,86273.0,86272.0,0.5767333]
[1741409298524,0.1159319,86273.0,86272.0,0.4767333]
[1741409298925,0.1159319,86273.0,86272.0,0.5954333]
[1741409299335,4e-05,86274.0,86273.0,0.1159319]
[1741409299722,4e-05,86274.0,86273.0,0.2346319]
[1741409299926,0.11592291,86277.0,86276.0,0.1159279]
[1741409300327,0.1159306,86274.0,86273.0,0.17691517]
[1741409300537,0.05078088,86274.0,86273.0,0.05821517]
[1741409302837,0.10013103,86275.0,86273.0,0.05821517]
[1741409303138,0.1159319,86274.0,86273.0,0.1159315]
[1741409303834,0.1159333,86272.0,86271.0,0.1122]
[1741409304837,0.1159333,86272.0,86271.0,0.2281346]
[1741409305339,0.4767333,86272.0,86271.0,0.1122]
[1741409305940,0.4767333,86272.0,86271.0,0.05448327]
[1741409306742,0.1159333,86272.0,86271.0,0.17041787]
[1741409306942,0.2295333,86272.0,86271.0,0.17041787]
[1741409307936,0.14989812,86272.0,86271.0,0.17041787]
[1741409308143,0.1136,86272.0,86271.0,0.17041787]
[1741409309042,0.2295333,86272.0,86271.0,0.11270114]
[1741409312036,0.2295333,86272.0,86271.0,0.05498441]
[1741409315146,0.2295333,86272.0,86269.0,0.05523588]
[1741409315347,0.2295333,86272.0,86271.0,0.1159346]
[1741409316444,0.16438203,86272.0,86271.0,0.1159346]
[1741409317751,0.0579639,86277.0,86271.0,0.1159346]
[1741409317752,0.1159004,86297.0,86292.0,0.1159064]
[1741409317947,0.1159001,86297.0,86292.0,0.1159064]
[1741409318252,0.36140001,86303.0,86292.0,0.05818967]
[1741409318465,0.12320001,86303.0,86302.0,0.115893]
[1741409318647,0.1158912,86304.0,86303.0,0.1158916]
[1741409319150,0.1148,86305.0,86303.0,0.1158916]
[1741409319345,0.1148,86305.0,86304.0,0.3460903]
[1741409319551,0.2306889,86305.0,86304.0,0.3460903]
[1741409320144,0.2306889,86305.0,86304.0,0.40404473]
[1741409320452,0.2306889,86305.0,86304.0,0.28815443]
[1741409321155,0.2306889,86305.0,86304.0,0.2304377]
[1741409321649,0.15108106,86305.0,86304.0,0.2304377]
[1741409321850,0.03519216,86305.0,86304.0,0.346328]
[1741409322050,0.15408106,86305.0,86304.0,0.346328]
[1741409322244,0.15608106,86305.0,86304.0,0.346328]
[1741409322546,0.1208889,86305.0,86304.0,0.346328]
[1741409322748,0.1188889,86305.0,86304.0,0.346328]
[1741409323057,0.1208889,86305.0,86304.0,0.346328]
[1741409323546,0.1198889,86305.0,86304.0,0.346328]
[1741409323750,0.004,86305.0,86304.0,0.346328]
[1741409323951,0.004,86305.0,86304.0,0.546328]
[1741409324154,0.004,86305.0,86304.0,0.48861127]
[1741409324842,0.002,86305.0,86304.0,0.48861127]
[1741409325045,0.3608,86309.0,86308.0,0.1158849]
[1741409325346,0.4766836,86309.0,86308.0,0.1158849]
[1741409325962,0.3608,86309.0,86308.0,0.2347849]
[1741409326351,0.4766836,86309.0,86308.0,0.2347849]
[1741409327052,0.5887836,86309.0,86308.0,0.2347849]
[1741409327244,0.5887836,86309.0,86308.0,0.17706817]
[1741409327445,0.5887836,86309.0,86308.0,0.28836817]
[1741409329849,0.4729,86309.0,86308.0,0.28836817]
[1741409330250,0.4729,86309.0,86308.0,0.2302]
[1741409330848,0.4077703,86309.0,86308.0,0.2302]
[1741409331449,0.4077703,86309.0,86308.0,0.3460849]
[1741409332053,0.1121,86309.0,86308.0,0.3460849]
[1741409333261,0.1121,86309.0,86308.0,0.28836817]
[1741409333560,0.3446836,86309.0,86308.0,0.28836817]
[1741409334560,0.2279836,86309.0,86308.0,0.28836817]
[1741409335751,0.1121,86309.0,86308.0,0.28836817]
[1741409336153,0.04696985,86309.0,86308.0,0.28836817]
[1741409336352,0.04696985,86309.0,86308.0,0.23065144]
[1741409336558,0.2325825,86310.0,86309.0,0.1158836]
[1741409336753,0.1158825,86310.0,86309.0,0.2360836]
[1741409337651,0.00017389,86311.0,86309.0,0.2360836]
[1741409337852,4e-05,86316.0,86309.0,0.4360836]
[1741409338056,0.0017383,86327.0,86326.0,0.1158608]
[1741409338253,0.3608,86357.0,86340.0,0.115842]
[1741409338463,0.1119,86365.0,86341.0,0.1978]
[1741409338761,0.1119,86365.0,86355.0,0.09125336]
[1741409339068,0.1158205,86356.0,86355.0,0.09125336]
[1741409339262,0.1119,86365.0,86355.0,0.00012523]
[1741409339462,0.1158211,86356.0,86355.0,0.1158207]
[1741409339964,0.0579091,86358.0,86357.0,0.1158192]
[1741409340762,0.1158218,86356.0,86355.0,0.1158216]
[1741409341065,0.1158218,86356.0,86355.0,0.2319216]
[1741409342260,0.1208218,86356.0,86355.0,0.2319216]
[1741409342465,0.1258218,86356.0,86355.0,0.17420487]
[1741409342663,0.01,86356.0,86355.0,0.17420487]
[1741409342970,0.01,86356.0,86355.0,0.47420487]
[1741409343174,0.00173765,86367.0,86366.0,0.1158071]
[1741409343373,0.00173765,86367.0,86366.0,0.2933671]
[1741409344172,0.00173765,86367.0,86366.0,0.54294464]
[1741409344364,0.3608,86378.0,86377.0,0.1157923]
[1741409344569,0.2177,86414.0,86377.0,0.5608]
[1741409344570,0.1142,86386.0,86377.0,0.5608]
[1741409344876,0.2299803,86386.0,86385.0,0.1157816]
[1741409345074,0.1142,86386.0,86379.0,0.0578948]
[1741409345266,0.1157869,86382.0,86381.0,0.1157848]
[1741409345466,0.1157869,86382.0,86381.0,0.05806807]
[1741409345864,0.1157869,86382.0,86378.0,0.19056]
[1741409345865,0.1157897,86379.0,86378.0,0.3063498]
[1741409346176,0.1154,86381.0,86380.0,0.1157883]
[1741409346366,0.1154,86381.0,86378.0,0.3063498]
[1741409346367,0.32733131,86406.0,86378.0,0.19056]
[1741409346573,0.1154,86398.0,86390.0,0.1157749]
[1741409346772,0.11594728,86391.0,86390.0,0.1933349]
[1741409347772,0.00017368,86391.0,86390.0,0.1933349]
[1741409348177,0.00017368,86391.0,86390.0,0.2933349]
[1741409348377,0.23597368,86391.0,86390.0,0.2933349]
[1741409348586,0.23797368,86391.0,86390.0,0.23561817]
[1741409349084,0.00217368,86391.0,86390.0,0.33561817]
[1741409351581,0.11794728,86391.0,86390.0,0.2]
[1741409351784,0.11794728,86391.0,86390.0,0.00884475]
[1741409351976,0.1157749,86390.0,86389.0,0.07752]
[1741409352289,0.3427749,86390.0,86389.0,0.07752]
[1741409352880,0.1157763,86389.0,86388.0,0.2213]
[1741409353281,0.3441763,86389.0,86388.0,0.2213]
[1741409353983,0.3441763,86389.0,86388.0,0.3370776]
[1741409354190,0.3441763,86389.0,86388.0,0.1157776]
[1741409354579,0.2284,86389.0,86388.0,0.17536087]
[1741409354786,0.2284,86389.0,86388.0,0.27536087]
[1741409355890,0.2284,86389.0,86388.0,0.28390542]
[1741409356382,0.2284,86389.0,86388.0,0.35882215]
[1741409356782,0.3441763,86389.0,86388.0,0.35882215]
[1741409356986,0.2284,86389.0,86388.0,0.35882215]
[1741409357188,0.2284,86389.0,86388.0,0.45882215]
[1741409357682,0.00017368,86391.0,86388.0,0.28532782]
[1741409357891,0.00017368,86391.0,86390.0,0.3157749]
[1741409358204,0.00017368,86391.0,86390.0,0.2157749]
[1741409358383,0.00017368,86391.0,86388.0,0.28532782]
[1741409358690,0.1157763,86389.0,86388.0,0.10854455]
[1741409358895,0.1157763,86389.0,86388.0,0.12432215]
[1741409359077,0.2273,86390.0,86387.0,0.3608]
[1741409359283,0.3430776,86388.0,86387.0,0.3608]
[1741409360295,0.3430776,86388.0,86387.0,0.36950071]
[1741409360792,0.3430776,86388.0,86387.0,0.31178398]
[1741409363479,0.3430776,86388.0,86387.0,0.31278398]
[1741409363683,0.3430776,86388.0,86387.0,0.00970071]
[1741409364088,0.3430776,86388.0,86387.0,0.01070071]
[1741409364593,0.2273,86388.0,86387.0,0.58727961]
[1741409364992,0.2273,86388.0,86387.0,0.80527961]
[1741409365484,0.2273,86388.0,86387.0,0.44447961]
[1741409365879,0.3430776,86388.0,86387.0,0.34447961]
[1741409366089,0.3430776,86388.0,86387.0,0.01070071]
[1741409366689,0.1157816,86385.0,86384.0,0.06876638]
[1741409366884,0.1157816,86385.0,86384.0,0.16876638]
[1741409367193,0.1157816,86385.0,86384.0,0.06876638]
[1741409367194,0.1137816,86385.0,86384.0,0.06876638]
[1741409367393,0.1137816,86385.0,86384.0,0.16876638]
[1741409367785,0.1127816,86385.0,86384.0,0.16876638]
[1741409368094,0.1127816,86385.0,86384.0,0.16976638]
[1741409368680,0.1127816,86385.0,86384.0,0.06976638]
[1741409368884,0.1127816,86385.0,86384.0,0.16976638]
[1741409369081,0.2273,86388.0,86387.0,0.1157789]
[1741409369288,0.1138,86388.0,86387.0,0.1157789]
[1741409369488,0.2295776,86388.0,86387.0,0.1157789]
[1741409369696,0.2295776,86388.0,86387.0,0.05806217]
[1741409370183,0.2295776,86388.0,86387.0,0.05906217]
[1741409370390,0.1138,86388.0,86387.0,0.15906217]
[1741409371898,0.2295776,86388.0,86387.0,0.15906217]
[1741409372693,0.2295776,86388.0,86387.0,0.101]
[1741409372894,0.2295776,86388.0,86387.0,0.2167789]
[1741409373093,0.2295776,86388.0,86387.0,0.101]
[1741409374000,0.2295776,86388.0,86387.0,0.2167789]
[1741409374303,0.1138,86388.0,86387.0,0.2167789]
[1741409375192,0.04873358,86388.0,86387.0,0.2167789]
[1741409375394,0.16451118,86388.0,86387.0,0.2167789]
[1741409375899,0.16451118,86388.0,86387.0,0.2157789]
[1741409376097,0.08498555,86388.0,86387.0,0.2157789]
[1741409376502,0.08498555,86388.0,86387.0,0.2167789]
[1741409377287,0.0578876,86390.0,86387.0,0.2167789]
[1741409377493,0.0578876,86390.0,86388.0,0.1125]
[1741409377494,0.1157763,86389.0,86388.0,0.1125]
[1741409377694,0.00017368,86391.0,86388.0,0.1703883]
[1741409377999,0.00017368,86391.0,86390.0,0.1157749]
[1741409378399,0.11594728,86391.0,86390.0,0.1157749]
[1741409378794,0.00017368,86391.0,86390.0,0.05805817]
[1741409380400,0.11717368,86391.0,86390.0,0.05805817]
[1741409381299,0.23294728,86391.0,86390.0,0.1]
[1741409381694,0.23294728,86391.0,86390.0,0.2157749]
[1741409381894,0.23294728,86391.0,86390.0,0.1157749]
[1741409382801,0.23294728,86391.0,86390.0,0.1167749]
[1741409384701,0.23294728,86391.0,86390.0,0.3457749]
[1741409385006,0.11717368,86391.0,86390.0,0.28805817]
[1741409385414,0.05210995,86391.0,86390.0,0.28805817]
[1741409385904,0.1157733,86392.0,86391.0,0.1157736]
[1741409386114,0.1157733,86392.0,86391.0,0.3562736]
[1741409386405,0.2339733,86392.0,86391.0,0.3562736]
[1741409386605,0.1182,86392.0,86391.0,0.3562736]
[1741409387398,0.1182,86392.0,86391.0,0.3572736]
[1741409387908,0.2339722,86392.0,86391.0,0.29955687]
[1741409388102,0.05313732,86392.0,86391.0,0.29955687]
[1741409388296,0.16890952,86392.0,86391.0,0.29955687]
[1741409388995,0.05313732,86392.0,86391.0,0.29955687]
[1741409389203,0.00010857,86393.0,86392.0,0.1157722]
[1741409389408,0.00010857,86393.0,86392.0,0.3526722]
[1741409390909,0.00010857,86393.0,86392.0,0.29495547]
[1741409392305,0.00010857,86393.0,86392.0,0.29595547]
[1741409392502,0.00010857,86393.0,86392.0,0.37813055]
[1741409392908,0.13459764,86396.0,86392.0,0.31914978]
[1741409393100,0.1127,86396.0,86393.0,0.057885]
[1741409393302,0.2284678,86396.0,86395.0,0.1157682]
[1741409393803,0.3432678,86396.0,86395.0,0.1153]
[1741409393996,0.3432678,86396.0,86395.0,0.16818327]
[1741409394202,0.3432678,86396.0,86395.0,0.25035835]
[1741409395010,0.26374793,86396.0,86395.0,0.25035835]
[1741409395224,0.26374793,86396.0,86395.0,0.08217508]
[1741409395599,0.26374793,86396.0,86395.0,0.08317508]
[1741409396611,0.62454793,86396.0,86395.0,0.08317508]
[1741409396803,0.50878013,86396.0,86370.0,0.13892213]
[1741409397003,0.115795,86375.0,86374.0,0.67109695]
[1741409397219,0.0578955,86378.0,86371.0,0.1209]
[1741409397220,0.115799,86372.0,86371.0,0.1209]
[1741409397413,0.476599,86372.0,86371.0,0.1209]
[1741409398117,0.585699,86372.0,86371.0,0.1209]
[1741409398417,0.5206172,86372.0,86371.0,0.1209]
[1741409398804,0.5206172,86372.0,86371.0,0.2367004]
[1741409399607,0.5206172,86372.0,86371.0,0.1209]
[1741409400122,0.5206172,86372.0,86371.0,0.06318327]
[1741409400718,0.1158004,86371.0,86370.0,0.12332177]
[1741409401220,0.3472004,86371.0,86370.0,0.23912347]
[1741409401620,0.3472004,86371.0,86370.0,0.12332177]
[1741409401814,0.1123,86371.0,86370.0,0.23912347]
[1741409402011,0.1157817,86385.0,86372.0,0.057899]
[1741409402210,0.1157839,86384.0,86380.0,0.057894]
[1741409402423,0.1157839,86384.0,86383.0,0.115784]
[1741409402716,0.1157856,86382.0,86381.0,0.111]
[1741409403022,0.1157856,86382.0,86381.0,0.05328327]
[1741409403411,0.3367856,86382.0,86381.0,0.05328327]
[1741409404317,0.6975856,86382.0,86381.0,0.05328327]
[1741409404729,0.3367856,86382.0,86381.0,0.05328327]
[1741409404921,0.1157794,86387.0,86386.0,0.1157776]
[1741409405223,0.1165,86391.0,86388.0,0.1157776]
[1741409405420,0.5930763,86389.0,86388.0,0.1157776]
[1741409406221,0.5930763,86389.0,86388.0,0.05806087]
[1741409406817,0.1157789,86387.0,86386.0,0.1153]
[1741409407110,0.1136,86388.0,86386.0,0.26751574]
[1741409407314,0.1157789,86387.0,86386.0,0.26751574]
[1741409407515,0.36140001,86389.0,86386.0,0.26751574]
[1741409407717,0.3608,86389.0,86388.0,0.1157776]
[1741409407927,0.4765763,86389.0,86388.0,0.1157776]
[1741409408626,0.5901763,86389.0,86388.0,0.1157776]
[1741409409022,0.00017368,86390.0,86388.0,0.1157776]
[1741409409231,0.2917822,86398.0,86391.0,0.1157736]
[1741409409431,0.1157655,86397.0,86396.0,0.1157666]
[1741409409818,0.3473655,86397.0,86396.0,0.1157666]
[1741409412129,0.1157763,86389.0,86388.0,0.05823435]
[1741409412324,0.1157776,86388.0,86387.0,0.2329785]
[1741409412726,0.1157776,86388.0,86387.0,0.1172]
[1741409413224,0.1157776,86388.0,86387.0,0.2329789]
[1741409413529,0.1157776,86388.0,86387.0,0.3526789]
[1741409413921,0.1157789,86387.0,86386.0,0.04111574]
[1741409414122,0.1195,86387.0,86383.0,0.4765838]
[1741409414429,0.115783,86384.0,86383.0,0.40262777]
[1741409414833,0.115783,86384.0,86383.0,0.51841207]
[1741409415220,0.115783,86384.0,86383.0,0.46069534]
[1741409415621,0.115783,86384.0,86383.0,0.34491104]
[1741409415818,0.1746906,86386.0,86383.0,0.34491104]
[1741409416132,0.115783,86384.0,86383.0,0.46069454]
[1741409416632,0.230883,86384.0,86383.0,0.46069454]
[1741409418328,0.230883,86384.0,86383.0,0.15761127]
[1741409419126,0.230883,86384.0,86383.0,0.04182777]
[1741409419328,0.1157843,86383.0,86382.0,0.2340851]
[1741409419531,0.2295843,86383.0,86382.0,0.1183]
[1741409419748,0.2295843,86383.0,86382.0,0.16000424]
[1741409420230,0.1645155,86383.0,86382.0,0.27578984]
[1741409421236,0.1645155,86383.0,86382.0,0.10228751]
[1741409422025,0.1645155,86383.0,86382.0,0.21807311]
[1741409422221,0.1645155,86383.0,86382.0,0.10228751]
[1741409422433,0.5253155,86383.0,86382.0,0.10228751]
[1741409422629,0.5253155,86383.0,86379.0,0.23175178]
[1741409422630,0.1157883,86380.0,86379.0,0.00017368]
[1741409423432,0.1157883,86380.0,86379.0,0.04048945]
[1741409423633,0.1157883,86380.0,86379.0,0.00017368]
[1741409424131,0.1164,86382.0,86381.0,0.115787]
[1741409424332,0.2323,86382.0,86381.0,0.05807027]
[1741409424534,0.3480856,86382.0,86381.0,0.05807027]
[1741409424733,0.115787,86381.0,86380.0,0.1122]
[1741409424924,0.1157883,86380.0,86379.0,0.00017368]
[1741409425129,0.2254883,86380.0,86379.0,0.04053887]
[1741409425328,0.2254883,86380.0,86379.0,0.00017368]
[1741409425736,0.1097,86380.0,86379.0,0.00017368]
[1741409425936,0.2254883,86380.0,86379.0,0.00017368]
[1741409427337,0.1097,86380.0,86377.0,0.0985835]
[1741409427533,0.1157977,86373.0,86372.0,0.231596]
[1741409427840,0.1157977,86373.0,86372.0,0.27338096]
[1741409428234,0.1157977,86373.0,86372.0,0.15758256]
[1741409429642,0.1157977,86373.0,86372.0,0.04178496]
[1741409429950,0.1157977,86373.0,86370.0,0.73880177]
[1741409429951,0.1158004,86371.0,86370.0,0.01008177]
[1741409430239,0.1158084,86365.0,86364.0,0.04220844]
[1741409430445,0.1158125,86362.0,86361.0,0.10549171]
[1741409431036,0.1158125,86362.0,86361.0,0.14566211]
[1741409431243,0.2334125,86362.0,86361.0,0.14566211]
[1741409431440,0.2334125,86362.0,86361.0,0.26147591]
[1741409431635,0.2334125,86362.0,86361.0,0.14566211]
[1741409432041,0.2334125,86362.0,86361.0,0.26147591]
[1741409432243,0.2334125,86362.0,86361.0,0.37267591]
[1741409432738,0.1683251,86362.0,86361.0,0.37267591]
[1741409433340,0.1683251,86362.0,86361.0,0.25686211]
[1741409433545,0.1683251,86362.0,86361.0,0.31495918]
[1741409434342,0.08877407,86362.0,86361.0,0.31495918]
[1741409434848,0.20458657,86362.0,86361.0,0.31495918]
[1741409435234,0.08877407,86362.0,86361.0,0.31495918]
[1741409436450,0.08877407,86362.0,86361.0,0.25724245]
[1741409438050,4e-05,86365.0,86362.0,0.0579058]
[1741409438248,4e-05,86365.0,86364.0,0.1158098]
[1741409438550,0.1136,86371.0,86370.0,0.1158017]
[1741409439457,0.1136,86371.0,86370.0,0.05808497]
[1741409439640,0.36144,86379.0,86378.0,0.115791]
[1741409439840,0.3608,86379.0,86378.0,0.115791]
[1741409440844,0.3608,86379.0,86378.0,0.215791]
[1741409441044,0.00021368,86381.0,86378.0,0.1]
[1741409441253,0.00021368,86381.0,86380.0,0.1157883]
[1741409441454,0.00017368,86381.0,86380.0,0.2157883]
[1741409442156,0.11596068,86381.0,86380.0,0.1]
[1741409442342,0.00017368,86381.0,86380.0,0.1157883]
[1741409442545,0.1123,86382.0,86381.0,0.115787]
[1741409442747,0.23018104,86382.0,86381.0,0.115787]
[1741409443049,0.26643563,86382.0,86381.0,0.115787]
[1741409445463,0.15065003,86382.0,86381.0,0.115787]
[1741409445647,0.15065003,86382.0,86374.0,0.0578978]
[1741409445964,0.1157912,86379.0,86378.0,0.1157905]
[1741409446153,0.1157912,86379.0,86378.0,0.2314905]
[1741409446356,0.1157874,86381.0,86380.0,0.115787]
[1741409446857,0.2276,86381.0,86380.0,0.115787]
[1741409447952,0.343387,86381.0,86380.0,0.115787]
[1741409448551,0.343387,86381.0,86380.0,0.05807027]
[1741409448552,0.1177,86381.0,86380.0,0.05807027]
[1741409449459,0.02371032,86381.0,86380.0,0.05807027]
[1741409450061,0.02371032,86381.0,86380.0,0.15807027]
[1741409450253,4e-05,86382.0,86380.0,0.05807027]
[1741409450460,4e-05,86382.0,86381.0,0.115787]
[1741409451660,4e-05,86382.0,86381.0,0.05807027]
[1741409452162,0.39708777,86389.0,86380.0,0.114]
[1741409452361,0.39708777,86389.0,86388.0,0.1157776]
[1741409452752,0.4479185,86389.0,86388.0,0.1157776]
[1741409452958,0.4479185,86389.0,86388.0,0.15690723]
[1741409454658,0.3321415,86389.0,86388.0,0.0991905]
[1741409455563,0.1159,86389.0,86388.0,0.0991905]
[1741409457657,0.1159,86389.0,86388.0,0.04147377]
[1741409457857,0.1159,86389.0,86388.0,0.15690723]
[1741409458059,0.00017368,86390.0,86388.0,0.1157776]
[1741409458257,0.00017368,86390.0,86389.0,0.2303763]
[1741409458465,0.00017368,86390.0,86389.0,0.3480763]
[1741409460163,0.1157763,86389.0,86388.0,0.1157776]
[1741409460466,0.2277763,86389.0,86388.0,0.16611698]
[1741409460658,0.2277763,86389.0,86388.0,0.10840025]
[1741409460858,0.2277763,86389.0,86388.0,0.22300025]
[1741409461070,0.112,86389.0,86388.0,0.33860025]
[1741409462369,0.2277763,86389.0,86388.0,0.33860025]
[1741409462767,0.16271044,86389.0,86388.0,0.33860025]
[1741409463264,0.28211044,86389.0,86388.0,0.33860025]
[1741409463773,0.2025855,86389.0,86388.0,0.28053938]
[1741409464865,0.2025855,86389.0,86388.0,0.39631578]
[1741409466263,0.3232855,86389.0,86388.0,0.39631578]
[1741409466466,0.1207,86389.0,86388.0,0.39631578]
[1741409466863,0.2326,86389.0,86388.0,0.33859905]
[1741409468366,0.3483763,86389.0,86388.0,0.39063668]
[1741409468873,0.2326,86389.0,86388.0,0.39063668]
[1741409469861,0.2326,86389.0,86388.0,0.33291995]
[1741409470271,0.138619,86389.0,86388.0,0.33291995]
[1741409472283,0.05909751,86389.0,86388.0,0.33291995]
[1741409472670,0.00017368,86390.0,86388.0,0.33291995]
[1741409472870,0.00017368,86390.0,86389.0,0.1157763]
[1741409473669,0.00017368,86390.0,86389.0,0.19738279]
[1741409475982,0.00017368,86390.0,86389.0,0.37556606]
[1741409476682,0.00017368,86390.0,86389.0,0.47556606]
[1741409477269,0.00017368,86390.0,86389.0,0.83636606]
[1741409478082,0.00017368,86390.0,86389.0,1.02836606]
[1741409478280,0.00017368,86390.0,86389.0,1.22836606]
[1741409478988,0.1132,86397.0,86389.0,1.17030649]
[1741409479181,4e-05,86393.0,86392.0,0.1736577]
[1741409479383,4e-05,86393.0,86392.0,0.2736577]
[1741409479792,4e-05,86393.0,86392.0,0.35526419]
[1741409481086,0.03372089,86397.0,86396.0,0.1157669]
[1741409481289,0.03372089,86397.0,86396.0,0.19737339]
[1741409482077,0.03372089,86397.0,86396.0,0.13965666]
[1741409482888,0.3023214,86400.0,86399.0,0.1157629]
[1741409483575,0.3023214,86400.0,86399.0,0.19736939]
[1741409484988,0.3023214,86400.0,86399.0,0.13965266]
[1741409485884,0.4222214,86400.0,86399.0,0.13965266]
[1741409487090,0.0686598,86400.0,86399.0,0.23965266]
[1741409487280,0.0686598,86400.0,86399.0,0.13965266]
[1741409487481,0.00359884,86400.0,86399.0,0.13965266]
[1741409488081,0.00359884,86400.0,86399.0,0.08160649]
[1741409488993,0.00359884,86400.0,86399.0,0.19736939]
[1741409489289,0.00359884,86400.0,86399.0,0.29736939]
[1741409489677,0.00359884,86400.0,86399.0,0.2157629]
[1741409490892,0.34576034,86400.0,86399.0,0.2157629]
[1741409491188,0.34576034,86400.0,86399.0,0.05804617]
[1741409492079,0.23496034,86400.0,86399.0,0.05804617]
[1741409492278,0.11919884,86400.0,86399.0,0.05804617]
[1741409493285,0.22999884,86400.0,86399.0,0.05804617]
[1741409493488,0.00359884,86400.0,86399.0,0.05804617]
[1741409493995,0.00359884,86400.0,86399.0,0.25004617]
[1741409494289,0.00359884,86400.0,86399.0,0.3077629]
[1741409495184,0.00359884,86400.0,86399.0,0.38936939]
[1741409496280,0.00359884,86400.0,86399.0,0.50586939]
[1741409497294,0.00359884,86400.0,86399.0,0.44815266]
[1741409498290,0.00359884,86400.0,86399.0,0.36654617]
[1741409498490,0.00017368,86401.0,86399.0,0.48704617]
[1741409498794,0.00017368,86401.0,86400.0,0.1157615]
[1741409498994,0.00017368,86401.0,86400.0,0.30626799]
[1741409499193,0.00017368,86401.0,86400.0,0.54736799]
[1741409500191,0.00017368,86401.0,86400.0,0.48965126]
[1741409501295,0.1613167,86403.0,86400.0,0.60541276]
[1741409501603,0.112,86403.0,86402.0,0.1157588]
[1741409502191,0.112,86403.0,86402.0,0.19736529]
[1741409502393,0.1157545,86406.0,86402.0,0.08160649]
[1741409502694,0.1157545,86406.0,86405.0,0.1157548]
[1741409502893,0.1157545,86406.0,86405.0,0.19736129]
[1741409503203,0.1157545,86406.0,86405.0,0.13964456]
[1741409504403,0.2256545,86406.0,86405.0,0.13964456]